Cogmind - Beta 9.6 @@@ ROGUE MODE // 2020.06.28 @ 00:12:22 Player: Vectis Result: Destroyed by S-27 Virus with Autogun Performance ------------- Evolutions (3) 1500 Regions Visited (16) 3200 Robots Destroyed (302) 1510 Value Destroyed (10383) 10383 Prototype IDs (32) 640 Alien Tech Used (0) 0 Bonus (4460) 4460 TOTAL SCORE: 21693 Bonus ------- High Alert Combat Kills 535 Follower Combat Kills 2202 Entered Garrisons 800 Used RIF Installer 1500 Aligned with FarCom 300 Friendly Fire -877 Cogmind --------- Core Integrity 0/700 Matter 190/300 Energy 300/300 System Corruption 3% Temperature Cool (17) Movement Rolling (130) Ox3 Location -7/Garrison Parts ------- > --- POWER (1) -------- Enhanced Nuclear Core > --- PROPULSION (2) --- Armored Huge Wheel > --- UTILITY (8) ------ Medium Storage Unit Large Storage Unit High-capacity Storage Unit High-capacity Storage Unit Relay Coupler [Swarmer] (43) Relay Coupler [Grunt] (1) Relay Coupler [Sentry] (7) Relay Coupler [Demolisher] (8) > --- WEAPON (2) ------- Gauss Rifle Magnetic Acceleration Cannon > --- INVENTORY (30) --- Wheel Armored Wheel Large Storage Unit High-capacity Storage Unit Large Matter Pod (95) Hacking Suite Hacking Suite System Shield Relay Coupler [NC] (23) Relay Coupler [NC] (26) Relay Coupler [NC] (26) Relay Coupler [NC] (27) Relay Coupler [NC] (28) Relay Coupler [NC] (23) Relay Coupler [Swarmer] (45) Relay Coupler [Swarmer] (42) Relay Coupler [Duelist] (22) Relay Coupler [Duelist] (29) Relay Coupler [Demolisher] (20) Relay Coupler [Hunter] (13) Trap Reconfigurator Firepult Proton Missile Launcher Remote Datajack Remote Datajack Remote Datajack Katana Peak State ------------ > --- POWER ------------ Enhanced Nuclear Core > --- PROPULSION ------- Armored Huge Wheel > --- UTILITY ---------- Medium Storage Unit Large Storage Unit High-capacity Storage Unit Remote Shield Relay Coupler [Swarmer] Relay Coupler [Grunt] Relay Coupler [Sentry] > --- WEAPON ----------- Firepult > --- INVENTORY -------- Armored Huge Wheel Superbattery Relay Coupler [NC] Relay Coupler [NC] Relay Coupler [NC] Relay Coupler [Swarmer] Relay Coupler [Duelist] Relay Coupler [Demolisher] Relay Coupler [Hunter] Trap Reconfigurator Gauss Rifle Magnetic Acceleration Cannon Magnetic Acceleration Cannon Proton Missile Launcher Remote Datajack Remote Datajack Remote Datajack Katana [Rating: 58] Favorites ----------- Power Cooled Ion Engine Engine Cooled Ion Engine Power Core Light Nuclear Core Propulsion Light Treads Treads Light Treads Leg Aluminum Leg Wheel Armored Wheel Utility High-capacity Storage Unit Device Cooling System Storage High-capacity Storage Unit Processor Improved Signal Interpreter Hackware Relay Coupler [Sentry] Protection Improved Light Armor Plating Weapon Improved Assault Rifle Energy Gun Advanced Beam Rifle Energy Cannon Light EM Pulse Cannon Ballistic Gun Improved Assault Rifle Ballistic Cannon Magnetic Acceleration Cannon Launcher Rocket Launcher Special Weapon Remote Datajack Slashing Weapon Katana Special Melee Weapon Improved Datajack Build | -11 -10 -10 -9 -9 -9 -8 -8 -8 -8 -8 -7 -7 -7 -7 -7 -7 ------- Run | Scr Mat Min Mat Min Exi Min Mat Gar Mat Gar Fac Was Fac Gar Fac Gar Slots Evolved 6 | . . . 2 . . . 2 . . . 2 . . . . . Power . | . . . . . . . . . . . . . . . . . Propulsion . | . . . . . . . . . . . . . . . . . Utility 6 | . . . 2 . . . 2 . . . 2 . . . . . Weapon . | . . . . . . . . . . . . . . . . . Parts Attached 357 | 7 7 6 31 6 3 2 2 23 27 37 28 . 81 42 36 19 Power 16 | 1 . 1 2 . . . . 3 1 2 1 . 2 2 1 . Engine 10 | 1 . . 1 . . . . 3 1 2 . . 1 1 . . Core 6 | . . 1 1 . . . . . . . 1 . 1 1 1 . Reactor . | . . . . . . . . . . . . . . . . . Propulsion 47 | 2 2 2 10 2 . . . 12 3 3 1 . 4 2 3 1 Treads 18 | 2 2 1 7 2 . . . 3 . . . . . 1 . . Leg 3 | . . . . . . . . . . . . . . 1 2 . Wheel 26 | . . 1 3 . . . . 9 3 3 1 . 4 . 1 1 Hover . | . . . . . . . . . . . . . . . . . Flight . | . . . . . . . . . . . . . . . . . Utility 104 | 1 2 1 6 . 3 . 2 3 5 13 10 . 21 19 13 5 Device 23 | . . . 2 . . . . 1 2 2 3 . 6 4 2 1 Storage 32 | 1 1 1 4 . 3 . 1 2 1 3 . . 6 2 5 2 Processor 2 | . . . . . . . . . . . . . 2 . . . Hackware 44 | . . . . . . . . . 2 8 7 . 7 12 6 2 Protection 3 | . 1 . . . . . 1 . . . . . . 1 . . Artifact . | . . . . . . . . . . . . . . . . . Weapon 190 | 3 3 2 13 4 . 2 . 5 18 19 16 . 54 19 19 13 Energy Gun 22 | 1 . 1 2 . . . . 1 2 4 6 . 2 3 . . Energy Cannon 29 | . . . 5 . . . . 2 9 4 2 . 1 4 . 2 Ballistic Gun 50 | 2 3 . 5 2 . 1 . 2 . 4 3 . 21 2 1 4 Ballistic Cannon 8 | . . . . . . . . . . . . . . 1 4 3 Launcher 14 | . . 1 1 2 . 1 . . . . 1 . 3 1 2 2 Special Weapon 19 | . . . . . . . . . . . . . 7 4 7 1 Impact Weapon . | . . . . . . . . . . . . . . . . . Slashing Weapon 25 | . . . . . . . . . 5 . . . 11 3 5 1 Piercing Weapon . | . . . . . . . . . . . . . . . . . Special Melee Weapon 23 | . . . . . . . . . 2 7 4 . 9 1 . . Unidentified Prototypes 10 | . . . 3 . . . . . 2 . 1 . 2 1 1 . Parts Lost 51 | . . 6 4 . . 1 . 7 4 6 3 2 9 5 2 2 Power 7 | . . 1 . . . . . 2 . . 1 . 2 1 . . Propulsion 17 | . . 2 2 . . . . 3 1 2 1 1 3 1 1 . Utility 9 | . . . . . . . . 1 . 1 . 1 2 2 1 1 Weapon 18 | . . 3 2 . . 1 . 1 3 3 1 . 2 1 . 1 Highest Loss Streak 5 | . . 4 1 . . 1 . 2 2 5 2 2 2 3 1 2 Average Slot Usage (%) 92 | . 95 90 99 100 100 99 100 96 89 93 88 76 89 88 93 87 Engine 5 | . 14 7 4 11 11 11 9 8 9 8 4 . 3 2 . . Core 2 | . . 5 6 . . . . . . . 2 5 3 1 7 7 Treads 5 | . 28 20 13 22 22 22 18 10 . . . . . 2 2 . Wheel 9 | . . 5 8 . . . . 6 17 17 15 13 14 10 6 7 Device 3 | . . . 10 11 2 . . 2 7 3 . . 3 3 . 3 Storage 30 | . 15 28 33 33 41 44 45 44 36 35 30 27 30 25 24 25 Hackware 14 | . . . . . . . . . . 10 19 23 14 22 34 27 Protection 1 | . 8 . . . . . 9 4 . . . . . 1 . . Energy Gun 1 | . . 4 3 . . . . . 1 5 9 . . . . . Energy Cannon 2 | . . . 10 . . . . 5 15 1 . . . . . . Ballistic Gun 6 | . 28 15 7 19 22 19 18 12 . 6 3 5 9 1 . . Ballistic Cannon 1 | . . . . . . . . . . . . . . . 8 8 Special Weapon 1 | . . . . . . . . . . . . . 1 3 4 3 Slashing Weapon 1 | . . . . . . . . . . . . . 1 4 . . Naked Turns . | . . . . . . . . . . . . . . . . . Heaviest Build 207 | 13 16 16 56 58 126 126 149 194 207 207 189 187 206 132 144 144 Greatest Support 43 | 40 40 40 40 40 40 40 40 43 28 32 24 24 28 28 30 28 Greatest Overweight (x) 14 | . . 1 4 1 3 3 3 12 12 8 7 11 14 8 7 5 Average Overweight (x) 4 | . . . 1 1 2 3 3 4 7 4 7 7 6 5 4 2 Largest Inventory Capacity 60 | 6 8 8 20 20 34 34 40 48 54 54 48 48 60 34 38 38 Average Capacity 33 | 5 6 8 18 20 30 34 40 41 48 37 48 45 43 29 29 24 Most Carried 52 | 2 7 8 20 20 34 34 40 48 52 52 48 48 46 34 34 33 Average Carried 30 | 1 5 7 17 19 27 33 38 38 47 33 46 45 39 28 26 21 Final Capacity 54 | 6 8 8 20 20 34 34 40 48 54 48 48 40 34 34 38 30 Final Carried 52 | 2 7 7 20 20 34 33 40 48 52 48 48 40 34 34 33 28 Class Distribution -------------------- 65% | Bothacker-Mutant 22% | Hauler-Mutant 3% | Mutant 3% | Scavenger-Mutant 3% | Commander-Mutant Dominant Class ---------------- Mutant | -10/Materials Mutant | -10/Mines Scavenger-Mutant | -9/Materials Hauler-Mutant | -9/Mines Hauler-Mutant | -9/Exiles Hauler-Mutant | -8/Mines Hauler-Mutant | -8/Materials Hauler-Mutant | -8/Garrison Bothacker-Mutant | -8/Materials Bothacker-Mutant | -8/Garrison Bothacker-Mutant | -7/Factory Bothacker-Mutant | -7/Waste Bothacker-Mutant | -7/Factory Bothacker-Mutant | -7/Garrison Bothacker-Mutant | -7/Factory Bothacker-Mutant | -7/Garrison Resources | -11 -10 -10 -9 -9 -9 -8 -8 -8 -8 -8 -7 -7 -7 -7 -7 -7 ----------- Run | Scr Mat Min Mat Min Exi Min Mat Gar Mat Gar Fac Was Fac Gar Fac Gar Matter Collected 7672 | 293 455 144 577 46 286 79 . 777 250 559 379 . 1558 865 934 470 Remotely . | . . . . . . . . . . . . . . . . . Salvage Created 10842 | 60 736 360 2249 88 . 183 36 1145 1457 415 489 . 2004 411 506 703 Parts 594 | . 47 17 143 4 . 15 5 45 97 31 35 . 82 14 25 34 Haulers Intercepted 12 | . 2 . 5 . . . . . 2 . . . 3 . . . Recyclers Shooed 7 | . 1 . 3 . . 1 . . . . . . 2 . . . Parts Field Recycled . | . . . . . . . . . . . . . . . . . Retrieved Matter . | . . . . . . . . . . . . . . . . . Parts Self-Destructed . | . . . . . . . . . . . . . . . . . Prevented . | . . . . . . . . . . . . . . . . . Kills | -11 -10 -10 -9 -9 -9 -8 -8 -8 -8 -8 -7 -7 -7 -7 -7 -7 ------- Run | Scr Mat Min Mat Min Exi Min Mat Gar Mat Gar Fac Was Fac Gar Fac Gar Combat Hostiles Destroyed 215 | . 11 9 34 19 . 4 2 20 23 11 15 . 28 8 12 19 Melee 6 | . . . . . . . . . . . . . 6 . . . Guns 86 | . 11 4 14 3 . . 2 20 . 8 8 . 13 1 . 2 Cannons 55 | . . . 17 . . . . . 16 3 1 . . 3 9 6 AOE 60 | . . 5 3 16 . 4 . . 3 . 5 . 7 3 3 11 Classes Destroyed 16 | 1 6 . 4 1 . . . . 1 . 2 . . . 1 . Worker 24 | . 3 . 6 . . 2 . . 7 . . . 6 . . . Builder 8 | . 3 1 . . . . . . 4 . . . . . . . Tunneler 2 | . . . 1 . . 1 . . . . . . . . . . Hauler 12 | . 2 . 5 . . . . . 2 . . . 3 . . . Recycler 23 | 1 2 1 6 . . 2 . . 2 . 1 . 7 . 1 . Mechanic 1 | . . . . . . . . . . . 1 . . . . . Operator 11 | . 1 . 4 . . . . . 4 . . . 2 . . . Watcher 4 | . . . 3 . . . . . . . 1 . . . . . Swarmer 81 | . 3 3 6 3 . 4 2 6 9 10 13 . 6 4 3 9 Grunt 80 | . 8 6 19 . . . . 10 3 . . . 16 5 5 8 Brawler 1 | . . . . . . . . . . . . . . . 1 . Duelist 2 | . . . 1 . . . . . . . . . . . . 1 Sentry 24 | . . . 8 . . . . 4 9 . . . 1 . 1 1 Hunter 6 | . . . . . . . . . 2 1 . . 3 . . . Programmer 7 | . . . . . . . . . . . 2 . 3 . 2 . Assembled 16 | . . . . 16 . . . . . . . . . . . . Best Kill Streak 16 | 1 6 5 5 16 . 6 2 3 7 9 5 . 8 8 7 7 Combat Bots Only 16 | . 3 5 3 16 . 4 2 3 5 9 4 . 4 8 6 7 Max Kills in Single Turn 6 | 1 2 3 3 6 . 5 1 1 3 2 2 . 3 2 2 4 Gunslinging 1 | . . . . . . . . . . 1 . . 1 . . . Exploded 6 | . . 3 3 6 . 4 . . 2 . 2 . 3 2 1 4 Melee 1 | . . . . . . . . . . . . . 1 . . . Uniques/NPCs Destroyed . | . . . . . . . . . . . . . . . . . Combat | -11 -10 -10 -9 -9 -9 -8 -8 -8 -8 -8 -7 -7 -7 -7 -7 -7 -------- Run | Scr Mat Min Mat Min Exi Min Mat Gar Mat Gar Fac Was Fac Gar Fac Gar Damage Taken 10290 | . 555 446 796 371 . 89 30 1443 846 817 815 238 1726 882 495 741 Core 1288 | . 47 64 77 17 . . 8 122 119 125 63 48 264 170 44 120 Absorbed by Shields 190 | . . . . . . . . . . . . . . 33 . 157 Core Remaining (%) 65 | 100 . 55 . . . 76 . . . 32 . . . . . . Volleys Fired 776 | 4 79 34 115 13 . 9 3 117 68 42 31 . 94 62 71 34 Largest 2 | 2 2 2 2 2 . 2 2 2 2 2 2 . 2 2 2 2 Hottest 250 | 40 40 50 136 66 . 56 46 56 124 136 250 . 250 250 106 250 Shots Fired 1310 | 8 158 50 227 26 . 16 6 199 135 67 59 . 144 70 94 51 Gun 821 | 8 158 45 114 14 . 14 6 195 13 54 52 . 113 21 2 12 Cannon 337 | . . . 111 . . . . 4 122 13 4 . 2 9 45 27 Launcher 45 | . . 5 2 12 . 2 . . . . 3 . 5 5 3 8 Special 107 | . . . . . . . . . . . . . 24 35 44 4 Kinetic 758 | 8 158 33 82 14 . 14 6 178 . 37 24 . 107 13 47 37 Thermal 250 | . . 12 143 . . . . . 16 19 32 . 17 9 . 2 Explosive 26 | . . 5 2 12 . 2 . . . . 3 . 2 . . . Electromagnetic 178 | . . . . . . . . 21 119 11 . . 3 13 3 8 Robot Hit Streak 30 | 3 15 23 23 11 . 9 2 30 28 12 12 . 15 13 15 16 Robot Miss Streak 7 | 2 4 4 7 1 . 5 1 3 3 3 4 . 4 3 5 5 Penetration Max 1 | . . . . . . . . . . . . . 1 . . 1 Secondary Targets 11 | . . 1 1 1 . . . 4 . 3 . . 1 . . . Max Gunslinging Chain 1 | . . 1 1 1 . . . 1 . 1 . . 1 . . . Shots Hit Robots 961 | 5 108 39 156 17 . 8 3 144 105 53 45 . 133 48 64 33 Core Hits 464 | 2 40 22 68 30 . 9 2 49 47 20 28 1 71 20 17 38 Critical Hits 15 | . 1 . 1 1 . . . 2 2 3 1 . 1 1 1 1 Critical Kills 8 | . . . . . . . . . 2 1 1 . 1 1 1 1 Critical Parts Destroyed 7 | . 1 . 1 1 . . . 2 . 2 . . . . . . Melee Attacks 144 | . . . . . . . . . 18 20 17 . 47 21 9 12 Impact . | . . . . . . . . . . . . . . . . . Slashing 75 | . . . . . . . . . 9 . . . 29 16 9 12 Piercing . | . . . . . . . . . . . . . . . . . Sneak Attacks 41 | . . . . . . . . . 7 1 8 . 21 . 4 . Combat Hostiles 3 | . . . . . . . . . . 1 1 . 1 . . . Follow-up Attacks 1 | . . . . . . . . . . . . . 1 . . . Damage Inflicted 21376 | 78 1124 653 2904 1149 . 430 31 2314 2579 832 1178 1 4346 914 1425 1418 Guns 8578 | 78 1124 378 1300 162 . 159 31 2186 246 525 513 . 1525 191 20 140 Cannons 5129 | . . . 1414 . . . . 73 1814 198 64 . 112 170 796 488 Explosions 5409 | . . 275 190 987 . 271 . 55 316 109 601 . 1105 553 157 790 Melee 2188 | . . . . . . . . . 195 . . . 1552 . 441 . Ramming 20 | . . . . . . . . . 8 . . 1 . . 11 . Kinetic 7937 | 78 1124 241 858 162 . 159 31 1857 . 312 153 . 1445 84 816 617 Thermal 4368 | . . 137 1856 . . . . 55 446 285 628 . 455 261 46 199 Explosive 2912 | . . 275 190 987 . 271 . . . . 397 . 792 . . . Electromagnetic 3951 | . . . . . . . . 402 1930 235 . . 102 569 111 602 Impact . | . . . . . . . . . . . . . . . . . Slashing 2188 | . . . . . . . . . 195 . . . 1552 . 441 . Piercing . | . . . . . . . . . . . . . . . . . Highest Corruption 21 | . 3 3 . . . . . . . . 2 21 21 15 3 3 Average Corruption 9 | . 2 3 . . . . . . . . 1 12 19 8 1 3 Corruption Purged 24 | . . . . . . . . . . . . . 7 17 . . Effects 363 | . 8 11 . . . . . . . . 3 5 229 82 11 14 Message Errors 90 | . 1 3 . . . . . . . . 2 1 48 24 5 6 Matter Fused 68 | . 1 2 . . . . . . . . . 1 37 20 1 6 Heat Flow Errors 31 | . . 1 . . . . . . . . . . 20 10 . . Energy Discharges 24 | . 2 1 . . . . . . . . . . 13 7 1 . Parts Rejected 1 | . . . . . . . . . . . . . 1 . . . Data Loss (minor) 41 | . 3 . . . . . . . . . 1 . 22 12 2 1 Data Loss (major) 12 | . . . . . . . . . . . . 1 6 5 . . Misfires 6 | . . . . . . . . . . . . . 5 1 . . Alerts 7 | . . . . . . . . . . . . . 5 2 . . Misdirections 34 | . . . . . . . . . . . . 2 32 . . . Targeting Errors 45 | . 1 4 . . . . . . . . . . 36 1 2 1 Weapon Failures 4 | . . . . . . . . . . . . . 4 . . . Overload Shots . | . . . . . . . . . . . . . . . . . Overflow Damage 977 | . . 6 20 13 . 8 . . 182 2 20 . 397 22 263 44 Projectiles 95 | . . . 20 . . . . . 32 2 . . . . 7 34 Explosions 140 | . . 6 . 13 . 8 . . 28 . 20 . 33 22 . 10 Melee 742 | . . . . . . . . . 122 . . . 364 . 256 . Knockbacks 8 | . . . . . . . . . . . . . . . 2 6 Impact . | . . . . . . . . . . . . . . . . . Kinetic 7 | . . . . . . . . . . . . . . . 1 6 Secondary 1 | . . . . . . . . . . . . . . . 1 . Self-Inflicted Damage 514 | . . 28 46 112 . 82 . . 33 . 18 . 160 21 5 9 Shots 22 | . . 2 1 6 . 2 . . 1 . 1 . 4 4 . 1 Rammed 3 | . . . . . . . . . 1 . . 1 . . 1 . Targets Rammed 3 | . . . . . . . . . 1 . . 1 . . 1 . Kicked . | . . . . . . . . . . . . . . . . . Crushed . | . . . . . . . . . . . . . . . . . Highest Temperature 512 | . 52 166 211 . . . . 102 105 72 512 . 425 260 288 411 Average Temperature 71 | . 12 60 50 . . . . 40 43 34 115 . 100 76 75 122 Received Heat Transfer 2124 | . 237 201 273 20 . . . 603 180 63 27 . 183 195 60 82 Effects 6 | . . . . . . . . . . . 2 . 1 2 . 1 Shutdowns 1 | . . . . . . . . . . . 1 . . . . . Energy Bleed 2 | . . . . . . . . . . . . . 1 . . 1 Interference 3 | . . . . . . . . . . . 1 . . 2 . . Siege Activations . | . . . . . . . . . . . . . . . . . Robots Corrupted 9 | . . . . . . . . 3 4 1 . . . 1 . . Combat Hostiles 5 | . . . . . . . . . 4 . . . . 1 . . Parts Fried 20 | . . . . . . . . 2 13 1 . . . 2 . 2 Impact Corruptions . | . . . . . . . . . . . . . . . . . Robots Melted 3 | . . . . . . . . . . . 1 . 2 . . . Combat Hostiles 3 | . . . . . . . . . . . 1 . 2 . . . Parts Melted 22 | . . . 6 . . . . . . . 4 . 8 2 . 2 Heat Transferred 11338 | . . 407 3515 . . . . 50 622 433 2026 . 2013 862 50 1360 Parts Sabotaged . | . . . . . . . . . . . . . . . . . Parts Stolen . | . . . . . . . . . . . . . . . . . Parts Stripped . | . . . . . . . . . . . . . . . . . Power Chain Reactions 8 | . . . . . . . . 1 4 1 . . . . 2 . Missiles Intercepted . | . . . . . . . . . . . . . . . . . Alert | -11 -10 -10 -9 -9 -9 -8 -8 -8 -8 -8 -7 -7 -7 -7 -7 -7 ------- Run | Scr Mat Min Mat Min Exi Min Mat Gar Mat Gar Fac Was Fac Gar Fac Gar Peak Influence 877 | 5 250 267 877 325 . 120 87 769 697 525 394 22 265 470 581 645 Average Influence 281 | 1 122 150 409 278 . 34 50 530 411 395 225 11 82 288 143 378 Maximum Alert Level 3 | . 1 1 3 1 . . . 3 2 2 1 . 1 2 2 2 Low Security (%) 44 | 100 78 86 25 1 . 100 100 9 26 14 43 100 95 41 60 29 Level 1 19 | . 21 13 30 98 . . . 22 12 14 56 . 4 12 32 14 Level 2 30 | . . . 29 . . . . 36 60 71 . . . 46 7 55 Level 3 4 | . . . 15 . . . . 31 . . . . . . . . Level 4 . | . . . . . . . . . . . . . . . . . Level 5 . | . . . . . . . . . . . . . . . . . High Security . | . . . . . . . . . . . . . . . . . Max Security . | . . . . . . . . . . . . . . . . . Squads Dispatched 61 | . 4 . 9 . . . . . 10 . 4 . 17 . 17 . Investigation 16 | . 2 . 5 . . . . . 3 . 1 . 2 . 3 . Extermination 12 | . . . . . . . . . . . 1 . 6 . 5 . Reinforcement 19 | . 2 . 4 . . . . . 3 . 2 . 3 . 5 . Assault 1 | . . . . . . . . . . . . . . . 1 . Garrison 13 | . . . . . . . . . 4 . . . 6 . 3 . Intercept . | . . . . . . . . . . . . . . . . . Construction Impeded 3 | . . . . . . . . . . . 1 . . . 2 . Haulers Reinforced 1 | . . . . . . . . . . . . . 1 . . . Alert ID Control Effect 81 | . . . . . . . . . . 2 5 . 12 8 50 4 Stealth | -11 -10 -10 -9 -9 -9 -8 -8 -8 -8 -8 -7 -7 -7 -7 -7 -7 --------- Run | Scr Mat Min Mat Min Exi Min Mat Gar Mat Gar Fac Was Fac Gar Fac Gar Distress Signals 28 | . 2 . 3 . . 1 . . 10 . 4 . 3 . 4 1 Communications Jammed . | . . . . . . . . . . . . . . . . . Distress Signals . | . . . . . . . . . . . . . . . . . Times Spotted 422 | . 19 9 54 19 . 4 3 29 50 27 36 6 58 35 49 24 Peak Tracking Total 12 | . 6 4 5 12 . 4 3 3 7 6 6 6 4 7 7 10 Tactical Retreats 37 | . . . 1 1 . . 1 10 3 . 5 . 6 1 6 3 Traps | -11 -10 -10 -9 -9 -9 -8 -8 -8 -8 -8 -7 -7 -7 -7 -7 -7 ------- Run | Scr Mat Min Mat Min Exi Min Mat Gar Mat Gar Fac Was Fac Gar Fac Gar Traps Triggered 32 | . 4 . . . . . . 6 . 5 2 . 2 6 3 4 Indirectly 5 | . . . . . . . . . . . . . . 1 . 4 Trap Hack Attempts . | . . . . . . . . . . . . . . . . . Triggered . | . . . . . . . . . . . . . . . . . Disarmed . | . . . . . . . . . . . . . . . . . Reprogrammed . | . . . . . . . . . . . . . . . . . Reused 2 | . . . . . . . . . . 1 . . 1 . . . Traps Reconfigurated 11 | . . . . . . . . . . . . . 5 . 6 . Traps Extracted . | . . . . . . . . . . . . . . . . . Installed 2 | . . . . . . . . . . 2 . . . . . . Triggered 3 | . . . . . . . . . 1 1 . . 1 . . . Exploded 3 | . . . . . . . . 3 . . . . . . . . Machines | -11 -10 -10 -9 -9 -9 -8 -8 -8 -8 -8 -7 -7 -7 -7 -7 -7 ---------- Run | Scr Mat Min Mat Min Exi Min Mat Gar Mat Gar Fac Was Fac Gar Fac Gar Machines Disabled 60 | . . . 5 . . . . 4 . 4 1 . 8 4 33 1 Max in Single Turn 2 | . . . 1 . . . . 1 . 1 1 . 2 1 . 1 Garrison Access 1 | . . . . . . . . . . . . . . . 1 . Garrison Relay 13 | . . . . . . . . 4 . 4 . . . 4 . 1 Machines Sabotaged . | . . . . . . . . . . . . . . . . . Garrisons Compromised . | . . . . . . . . . . . . . . . . . Overloaded Fab Kills . | . . . . . . . . . . . . . . . . . Fab Network Shutdowns . | . . . . . . . . . . . . . . . . . Hacking | -11 -10 -10 -9 -9 -9 -8 -8 -8 -8 -8 -7 -7 -7 -7 -7 -7 --------- Run | Scr Mat Min Mat Min Exi Min Mat Gar Mat Gar Fac Was Fac Gar Fac Gar Machines Accessed 40 | . 3 . 13 . 2 . 2 . 2 . 4 . 8 . 6 . Terminals 19 | . 2 . 8 . . . 1 . 1 . 2 . 3 . 2 . Fabricators . | . . . . . . . . . . . . . . . . . Repair Stations 4 | . . . 2 . . . . . . . 1 . . . 1 . Recycling Units 8 | . 1 . 2 . . . . . . . . . 3 . 2 . Scanalyzers 2 | . . . 1 . . . . . . . 1 . . . . . Garrison Access 5 | . . . . . . . 1 . 1 . . . 2 . 1 . Total Hacks 98 | . 6 . 36 . 2 . 3 . 6 . 21 . 13 . 11 . Successful 54 | . 3 . 20 . 2 . 1 . 3 . 14 . 4 . 7 . Failed 43 | . 2 . 16 . . . 2 . 3 . 7 . 9 . 4 . Catastrophic 13 | . . . 4 . . . . . 1 . . . 5 . 3 . Database Lockouts 1 | . 1 . . . . . . . . . . . . . . . Manual 38 | . 5 . 10 . 1 . . . 2 . 2 . 12 . 6 . Terminals 52 | . 5 . 23 . . . 2 . 4 . 7 . 6 . 5 . Fabricators . | . . . . . . . . . . . . . . . . . Repair Stations 12 | . . . 8 . . . . . . . 2 . . . 2 . Recycling Units 9 | . 1 . 2 . . . . . . . . . 4 . 2 . Scanalyzers 15 | . . . 3 . . . . . . . 12 . . . . . Garrison Access 8 | . . . . . . . 1 . 2 . . . 3 . 2 . Terminal Hacks 16 | . 2 . 8 . 2 . . . . . 2 . . . 2 . Record 1 | . . . . . 1 . . . . . . . . . . . Robot Analysis 3 | . 1 . 2 . . . . . . . . . . . . . Emergency Access Points 1 | . . . . . . . . . . . 1 . . . . . Unreport Threat 2 | . . . 2 . . . . . . . . . . . . . Locate Traps 2 | . 1 . 1 . . . . . . . . . . . . . Recall Assault 1 | . . . . . . . . . . . . . . . 1 . Registered Components 1 | . . . 1 . . . . . . . . . . . . . Zone Layout 4 | . . . 2 . . . . . . . 1 . . . 1 . EX-Prototype ID Bank 1 | . . . . . 1 . . . . . . . . . . . Fabricator Hacks . | . . . . . . . . . . . . . . . . . Repair Station Hacks 6 | . . . 6 . . . . . . . . . . . . . Scan Component 3 | . . . 3 . . . . . . . . . . . . . Repair 3 | . . . 3 . . . . . . . . . . . . . Recycling Unit Hacks . | . . . . . . . . . . . . . . . . . Scanalyzer 15 | . . . 3 . . . . . . . 12 . . . . . Insert Component 7 | . . . 1 . . . . . . . 6 . . . . . Analyze 8 | . . . 2 . . . . . . . 6 . . . . . Garrison Access Hacks 4 | . . . . . . . 1 . 1 . . . 1 . 1 . Unlock Access 4 | . . . . . . . 1 . 1 . . . 1 . 1 . Unauthorized Hacks 13 | . 1 . 3 . . . . . 2 . . . 3 . 4 . Terminals 6 | . . . 1 . . . . . 1 . . . 2 . 2 . Botnet 2 | . . . . . . . . . . . . . 1 . 1 . Disrupt 1 | . . . 1 . . . . . . . . . . . . . Operators 2 | . . . . . . . . . . . . . 1 . 1 . Search 1 | . . . . . . . . . 1 . . . . . . . Fabricators . | . . . . . . . . . . . . . . . . . Repair Stations 1 | . . . . . . . . . . . . . . . 1 . Mechanics 1 | . . . . . . . . . . . . . . . 1 . Recycling Units 4 | . 1 . 2 . . . . . . . . . . . 1 . Mask 1 | . . . . . . . . . . . . . . . 1 . Tunnel 3 | . 1 . 2 . . . . . . . . . . . . . Scanalyzers . | . . . . . . . . . . . . . . . . . Garrison Access 2 | . . . . . . . . . 1 . . . 1 . . . Eject 2 | . . . . . . . . . 1 . . . 1 . . . Data Cores Recovered . | . . . . . . . . . . . . . . . . . Used . | . . . . . . . . . . . . . . . . . Hacking Detections 31 | . 2 . 11 . . . 1 . 1 . 4 . 7 . 5 . Full Trace Events 6 | . . . 4 . . . . . . . 1 . . . 1 . Feedback Events . | . . . . . . . . . . . . . . . . . Feedback Blocked . | . . . . . . . . . . . . . . . . . Robot Schematics Acquired . | . . . . . . . . . . . . . . . . . Robots Built . | . . . . . . . . . . . . . . . . . Matter . | . . . . . . . . . . . . . . . . . Time . | . . . . . . . . . . . . . . . . . Total Robot Build Rating . | . . . . . . . . . . . . . . . . . Part Schematics Acquired 7 | . . . 1 . . . . . . . 6 . . . . . Parts Built . | . . . . . . . . . . . . . . . . . Matter . | . . . . . . . . . . . . . . . . . Time . | . . . . . . . . . . . . . . . . . Total Part Build Rating . | . . . . . . . . . . . . . . . . . Parts Repaired 3 | . . . 3 . . . . . . . . . . . . . Time 90 | . . . 90 . . . . . . . . . . . . . Parts Recycled . | . . . . . . . . . . . . . . . . . Recycled Matter . | . . . . . . . . . . . . . . . . . Retrieved Matter . | . . . . . . . . . . . . . . . . . Retrieved Components . | . . . . . . . . . . . . . . . . . Parts Scanalyzed 7 | . . . 1 . . . . . . . 6 . . . . . Part Schematics Acquired 7 | . . . 1 . . . . . . . 6 . . . . . Parts Damaged . | . . . . . . . . . . . . . . . . . Bothacking | -11 -10 -10 -9 -9 -9 -8 -8 -8 -8 -8 -7 -7 -7 -7 -7 -7 ------------ Run | Scr Mat Min Mat Min Exi Min Mat Gar Mat Gar Fac Was Fac Gar Fac Gar Used RIF Installer 3 | . . . . . . . . 1 . 1 . . . 1 . . Robot Detection 1 | . . . . . . . . . . . . . . 1 . . Alert ID Control 1 | . . . . . . . . . . 1 . . . . . . Robots Hacked 81 | . . . . . . . . . 2 10 9 . 20 21 17 2 Non-combat 29 | . . . . . . . . . 2 . 3 . 11 . 12 1 Combat 52 | . . . . . . . . . . 10 6 . 9 21 5 1 Robot Hacks Applied 104 | . . . . . . . . . 7 10 14 . 24 21 26 2 parse_system 2 | . . . . . . . . . . . . . 1 . 1 . no_distress 5 | . . . . . . . . . . . . . 4 . 1 . generate_echo 1 | . . . . . . . . . . . 1 . . . . . find_fabricator 2 | . . . . . . . . . . . . . 1 . 1 . drop_inventory 1 | . . . . . . . . . . . . . . . 1 . find_recycling 1 | . . . . . . . . . . . . . . . 1 . ignore_parts 13 | . . . . . . . . . . . . . 6 . 7 . find_station 1 | . . . . . . . . . . . 1 . . . . . purge_threat 11 | . . . . . . . . . 4 . 2 . 1 . 4 . locate_traps 1 | . . . . . . . . . . . . . 1 . . . disarm_traps 2 | . . . . . . . . . 1 . 1 . . . . . reprogram_traps 1 | . . . . . . . . . 1 . . . . . . . recall_investigation 1 | . . . . . . . . . 1 . . . . . . . find_garrison 1 | . . . . . . . . . . . 1 . . . . . link_fov 2 | . . . . . . . . . . . 1 . . . 1 . scatter_targeting 1 | . . . . . . . . . . . . . . . 1 . spike_heat 2 | . . . . . . . . . . . . . . 1 1 . disable_weapons 2 | . . . . . . . . . . . 1 . . 1 . . reboot_system 1 | . . . . . . . . . . . . . 1 . . . overwrite_iff 1 | . . . . . . . . . . . . . 1 . . . streamctrl_low 1 | . . . . . . . . . . . . . 1 . . . streamctrl_high 2 | . . . . . . . . . . . 1 . . 1 . . formatsys_low 5 | . . . . . . . . . . . 1 . . . 4 . formatsys_high 44 | . . . . . . . . . . 10 4 . 7 18 3 2 Relay Couplers Released 59 | . . . . . . . . 15 4 15 . . 3 16 2 4 Ejected 7 | . . . . . . . . . 4 . . . 3 . . . Machine Destruction 52 | . . . . . . . . 15 . 15 . . . 16 2 4 Attached 41 | . . . . . . . . . 2 8 5 . 6 12 6 2 Robots Rewired . | . . . . . . . . . . . . . . . . . Allies Hacked . | . . . . . . . . . . . . . . . . . Hacks Repelled . | . . . . . . . . . . . . . . . . . Allies | -11 -10 -10 -9 -9 -9 -8 -8 -8 -8 -8 -7 -7 -7 -7 -7 -7 -------- Run | Scr Mat Min Mat Min Exi Min Mat Gar Mat Gar Fac Was Fac Gar Fac Gar Total Allies 55 | . . . . . . . . . . 10 6 . 9 19 9 2 Largest Group 16 | . . . . . . . . . . 7 7 . 3 16 16 2 Highest-Rated Group 324 | . . . . . . . . . . 93 93 . 84 309 324 71 Highest-Rated Ally 37 | . . . . . . . . . . 29 29 . 32 32 32 37 Total Orders 105 | . . . . . . . . . . 10 12 . 14 23 41 5 STAY 57 | . . . . . . . . . . 7 6 . 9 14 18 3 FOLLOW 35 | . . . . . . . . . . 3 2 . 5 9 15 1 AID 8 | . . . . . . . . . . . 4 . . . 3 1 DROP 2 | . . . . . . . . . . . . . . . 2 . COLLECT 3 | . . . . . . . . . . . . . . . 3 . Ally Attacks 403 | . . . . . . . . . . 6 68 . 55 29 234 11 Total Damage 8547 | . . . . . . . . . . 117 849 . 1188 587 5118 688 Kills 95 | . . . . . . . . . . 2 10 . 13 8 57 5 Allies Corrupted . | . . . . . . . . . . . . . . . . . Allies Melted 1 | . . . . . . . . . . . 1 . . . . . Intel | -11 -10 -10 -9 -9 -9 -8 -8 -8 -8 -8 -7 -7 -7 -7 -7 -7 ------- Run | Scr Mat Min Mat Min Exi Min Mat Gar Mat Gar Fac Was Fac Gar Fac Gar Robot Analysis Total 3 | . 1 . 2 . . . . . . . . . . . . . Derelict Logs Recovered 3 | . . . . 3 . . . . . . . . . . . . Drone Launches . | . . . . . . . . . . . . . . . . . Drone Recoveries . | . . . . . . . . . . . . . . . . . Exploration | -11 -10 -10 -9 -9 -9 -8 -8 -8 -8 -8 -7 -7 -7 -7 -7 -7 ------------- Run | Scr Mat Min Mat Min Exi Min Mat Gar Mat Gar Fac Was Fac Gar Fac Gar Turns Passed 29096 | 112 750 369 1843 407 1359 299 117 3325 971 2853 1180 136 3498 7383 3862 632 Spaces Moved 12901 | 53 296 227 786 198 642 79 44 1386 336 1709 521 82 1629 2553 2017 343 Core 4 | 4 . . . . . . . . . . . . . . . . Treads 2574 | 49 296 92 421 198 642 79 44 744 . . . . . . 9 . Legs 60 | . . . . . . . . . . . . . . . 60 . Wheels 10263 | . . 135 365 . . . . 642 336 1709 521 82 1629 2553 1948 343 Hover . | . . . . . . . . . . . . . . . . . Flight . | . . . . . . . . . . . . . . . . . Fastest Speed 50 | 50 160 80 90 180 180 220 220 140 155 125 160 150 135 135 140 120 Average Speed 159 | 151 160 118 149 180 209 220 220 193 165 139 160 165 153 159 151 127 Slowest Speed 280 | 160 160 160 200 180 220 220 220 280 220 180 160 200 230 180 260 150 Overloaded Moves . | . . . . . . . . . . . . . . . . . Propulsion Burnouts . | . . . . . . . . . . . . . . . . . Robots Hopped . | . . . . . . . . . . . . . . . . . Cave-ins Triggered 1 | . . . . . . . . . . . . . . 1 . . Exploration Rate (%) 45 | 4 52 45 79 39 90 16 5 78 24 75 13 71 35 74 49 31 Regions Visited 16 Branch Regions 4 Pre-discovered Areas 5 | . 1 . 2 1 1 . . . . . . . . . . . Known Exits Taken 6 | . . . . 1 . 1 1 . 1 . . . 1 . 1 . Unknown Exits Taken 5 | 1 1 1 1 . 1 . . . . . . . . . . . Scrap Searched 1 | . . 1 . . . . . . . . . . . . . . Spaces Dug 32 | . . 9 . . . . . . 7 . . . 2 6 4 4 Terrain Destroyed 289 | . . 21 9 74 . 30 . . 21 . 26 . 82 8 14 4 Melee 23 | . . . . . . . . . 7 . . . 2 6 4 4 Projectile 13 | . . . . . . . . . . . . . 1 2 10 . AOE 253 | . . 21 9 74 . 30 . . 14 . 26 . 79 . . . Actions | -11 -10 -10 -9 -9 -9 -8 -8 -8 -8 -8 -7 -7 -7 -7 -7 -7 --------- Run | Scr Mat Min Mat Min Exi Min Mat Gar Mat Gar Fac Was Fac Gar Fac Gar Total 19993 | 74 426 283 1237 222 659 188 58 1832 596 2110 806 82 2414 5795 2738 473 Wait 5191 | 9 31 14 243 2 . 99 . 242 111 155 186 . 501 3018 546 34 Move 12888 | 52 295 226 785 197 641 78 44 1385 335 1708 521 81 1628 2552 2017 343 Hop . | . . . . . . . . . . . . . . . . . Pick Up 299 | 1 8 3 33 2 12 . 9 35 20 52 9 . 40 37 22 16 Fast Attach 63 | 7 3 1 13 . . . . 3 3 5 3 . 6 11 6 2 Attach 118 | . . 4 7 2 . 1 2 10 6 18 10 . 25 16 8 9 Detach 35 | 1 . . 2 . . . . 1 2 3 6 . 6 6 3 5 Swap 176 | . 4 1 11 4 3 1 . 10 18 14 15 . 50 15 22 8 Drop 172 | . 6 . 28 2 3 . . 16 14 43 3 . 13 17 17 10 Fire 776 | 4 79 34 115 13 . 9 3 117 68 42 31 . 94 62 71 34 Melee 143 | . . . . . . . . . 18 20 17 . 46 21 9 12 Ram 3 | . . . . . . . . . 1 . . 1 . . 1 . Kick . | . . . . . . . . . . . . . . . . . Crush . | . . . . . . . . . . . . . . . . . Escape Stasis 106 | . . . . . . . . 12 . 40 . . . 38 16 . Rewire 21 | . . . . . . . . 1 . 8 5 . 5 2 . . Trap 2 | . . . . . . . . . . 2 . . . . . . Miscellaneous . | . . . . . . . . . . . . . . . . . Route ------- -11/Scrapyard -10/Materials -10/Mines -9/Materials (discovered 4 exits: *Mat x2 / [*Min x2]) -9/Mines (discovered 3 exits: *Mat x2 / *Exi) -9/Exiles -8/Mines -8/Materials -8/Garrison (discovered 3 exits: *Mat x3) -8/Materials -8/Garrison (discovered 3 exits: *Fac x3) -7/Factory (discovered 2 exits: [*Fac] / [*Low]) -7/Waste -7/Factory (discovered 3 exits: [*Fac] / [*Sto] / Gar) -7/Garrison (discovered 2 exits: *Fac x2) -7/Factory (discovered 4 exits: [*Fac x2] / [*Low] / Gar) -7/Garrison History --------- Turn | Location | Event 8 | -11/Scrapyard | Discovered new exit (range 14) 113 | -11/Scrapyard | Entered Materials 304 | -10/Materials | Build established: Mutant 361 | -10/Materials | Discovered new exit (range 15) 650 | -10/Materials | Central database locked down 863 | -10/Materials | Entered Mines 1099 | -10/Mines | Lost 4 parts (1p1n2w) 1226 | -10/Mines | Discovered new exit (range 7) 1232 | -10/Mines | Entered Materials 1232 | -9/Materials | Evolved 2 slots: Utility x2 1340 | -9/Materials | Repaired Lgt. Nuclear Core 1368 | -9/Materials | Repaired Grenade Launcher 1620 | -9/Materials | Repaired Lgt. Treads 1655 | -9/Materials | Build established: Scavenger-Mutant 1784 | -9/Materials | Discovered new exit (range 3) 1805 | -9/Materials | Discovered new exit (range 16) 2629 | -9/Materials | Build established: Hauler-Mutant 2636 | -9/Materials | Discovered new exit (range 8) 3036 | -9/Materials | Discovered new exit (range 15) 3075 | -9/Materials | Entered Mines 3076 | -9/Mines | Assembled infested the area 3081 | -9/Mines | Assisted by a Guerilla fighting off Assembled 3126 | -9/Mines | Destroyed 16 combat bots 3128 | -9/Mines | Found a hidden stash of uninstalled traps 3221 | -9/Mines | Identified exit to Materials 3342 | -9/Mines | Discovered exit to Materials (range 5) 3374 | -9/Mines | Identified exit to Exiles 3473 | -9/Mines | Deemed a non-threat by the Exiles lab entrance 3482 | -9/Mines | Entered Exiles 3527 | -9/Exiles | Met 8R-AWN 3560 | -9/Exiles | Met EX-HEX 3643 | -9/Exiles | Met EX-DEC 3684 | -9/Exiles | Learned location of Zion (-7) 3994 | -9/Exiles | Visited The Gauntlet 4469 | -9/Exiles | Met EX-BIN 4500 | -9/Exiles | Aligned with FarCom system 4502 | -9/Exiles | Given EX-Vault access code 4557 | -9/Exiles | Opened EX-Vault 4573 | -9/Exiles | Found Superbattery 4580 | -9/Exiles | Found Trap Reconfigurator 4590 | -9/Exiles | Found Firepult 4637 | -9/Exiles | Warned to stay clear of 0b10 Research branches 4824 | -9/Exiles | Discovered new exit (range 10) 4841 | -9/Exiles | Stole three prototypes: Superbattery, Trap Reconfigurator, Firepult 4841 | -9/Exiles | Entered Mines 5131 | -8/Mines | Discovered exit to Materials (range 5) 5140 | -8/Mines | Entered Materials 5140 | -8/Materials | Evolved 2 slots: Utility x2 5257 | -8/Materials | Identified exit to Garrison 5257 | -8/Materials | Entered Garrison 5425 | -8/Garrison | Triggered checkpoint 5608 | -8/Garrison | Discovered new exit (range 10) 5692 | -8/Garrison | Triggered checkpoint 5802 | -8/Garrison | Discovered new exit (range 15) 5850 | -8/Garrison | Installed Relay Interface Framework 5960 | -8/Garrison | Triggered checkpoint 5988 | -8/Garrison | Garrison Relay disabled 6242 | -8/Garrison | Triggered checkpoint 6410 | -8/Garrison | Garrison Relay disabled 6558 | -8/Garrison | Triggered checkpoint 6719 | -8/Garrison | Discovered new exit (range 10) 6758 | -8/Garrison | Triggered checkpoint 6913 | -8/Garrison | Garrison Relay disabled 7137 | -8/Garrison | Triggered checkpoint 7436 | -8/Garrison | Triggered checkpoint 7624 | -8/Garrison | Garrison Relay disabled 8582 | -8/Garrison | Entered Materials 8876 | -8/Materials | Garrison activated, responded to threat 8976 | -8/Materials | Garrison activated, responded to threat 9145 | -8/Materials | Build established: Bothacker-Mutant 9530 | -8/Materials | Identified exit to Garrison 9553 | -8/Materials | Entered Garrison 9561 | -8/Garrison | Expanded RIF knowledge: Alert ID Control 9746 | -8/Garrison | Triggered checkpoint 9844 | -8/Garrison | Garrison Relay disabled 9944 | -8/Garrison | Triggered checkpoint 10161 | -8/Garrison | Discovered new exit (range 8) 10190 | -8/Garrison | Triggered checkpoint 10222 | -8/Garrison | Garrison Relay disabled 10328 | -8/Garrison | Triggered checkpoint 10342 | -8/Garrison | Core integrity fell below 50% 10343 | -8/Garrison | Triggered checkpoint 10399 | -8/Garrison | Destroyed 9 combat bots 10403 | -8/Garrison | Lost 5 parts (2n1u2w) 10522 | -8/Garrison | Triggered checkpoint 10914 | -8/Garrison | Discovered new exit (range 9) 10948 | -8/Garrison | Triggered checkpoint 11186 | -8/Garrison | Garrison Relay disabled 11336 | -8/Garrison | Triggered checkpoint 11366 | -8/Garrison | Garrison Relay disabled 12371 | -8/Garrison | Discovered new exit (range 14) 12406 | -8/Garrison | Entered Factory 12406 | -7/Factory | Accompanied by 7 allies 12406 | -7/Factory | Evolved 2 slots: Utility x2 12408 | -7/Factory | FarCom data flow suspended 12537 | -7/Factory | Discovered new exit (range 16) 13553 | -7/Factory | Discovered new exit (range 16) 13586 | -7/Factory | Sucked down chute 13586 | -7/Factory | Entered Waste 13601 | -7/Waste | EMP discharged 13601 | -7/Waste | System corruption reached 10% 13601 | -7/Waste | Spotted C-40 Crusher 13613 | -7/Waste | Crushed by Compactor (0 parts destroyed, 1 dropped) 13623 | -7/Waste | Spotted C-40 Crusher 13625 | -7/Waste | Spotted C-40 Crusher 13625 | -7/Waste | Spotted C-40 Crusher 13654 | -7/Waste | Spotted C-40 Crusher 13668 | -7/Waste | Crushed by Compactor (0 parts destroyed, 1 dropped) 13671 | -7/Waste | Crushed by Compactor (1 part destroyed) 13685 | -7/Waste | Spotted C-40 Crusher 13691 | -7/Waste | Discovered new exit (range 16) 13693 | -7/Waste | Crushed by Compactor (1 part destroyed, 1 dropped) 13701 | -7/Waste | EMP discharged 13722 | -7/Waste | Entered Factory 14012 | -7/Factory | Discovered new exit (range 16) 14319 | -7/Factory | Found Prototype Launcher 15124 | -7/Factory | Garrison activated, responded to threat 15358 | -7/Factory | Identified Rocket Array 15466 | -7/Factory | Discovered new exit (range 15) 16802 | -7/Factory | Garrison activated, responded to threat 16952 | -7/Factory | Core integrity fell below 50% 17215 | -7/Factory | Identified exit to Garrison 17220 | -7/Factory | Entered Garrison 17547 | -7/Garrison | Crushed by falling debris 19871 | -7/Garrison | Triggered checkpoint 19922 | -7/Garrison | Garrison Relay disabled 20220 | -7/Garrison | Triggered checkpoint 20285 | -7/Garrison | Destroyed 8 combat bots 20288 | -7/Garrison | Triggered checkpoint 20290 | -7/Garrison | Lost 3 parts (1n1u1w) 20352 | -7/Garrison | Discovered new exit (range 12) 20386 | -7/Garrison | Expanded RIF knowledge: Robot Detection 20562 | -7/Garrison | Triggered checkpoint 20610 | -7/Garrison | Garrison Relay disabled 21125 | -7/Garrison | Garrison Relay disabled 21178 | -7/Garrison | Triggered checkpoint 21767 | -7/Garrison | Triggered checkpoint 21939 | -7/Garrison | Triggered checkpoint 22337 | -7/Garrison | Discovered new exit (range 9) 22408 | -7/Garrison | Triggered checkpoint 22425 | -7/Garrison | Garrison Relay disabled 22670 | -7/Garrison | Build established: Commander-Mutant 23792 | -7/Garrison | Build established: Bothacker-Mutant 24603 | -7/Garrison | Entered Factory 24603 | -7/Factory | Accompanied by 16 allies 24791 | -7/Factory | P-60 Hacker assimilated allied Trooper 4f 25387 | -7/Factory | P-60 Hacker assimilated allied Guardian 4e 25577 | -7/Factory | Allied Derelicts emerged from ambush trap array 25798 | -7/Factory | Discovered new exit (range 8) 26784 | -7/Factory | Discovered new exit (range 8) 27460 | -7/Factory | Discovered new exit (range 15) 27479 | -7/Factory | Core integrity fell below 20% 28260 | -7/Factory | Garrison activated, responded to threat 28465 | -7/Factory | Identified exit to Garrison 28465 | -7/Factory | Entered Garrison 28648 | -7/Garrison | Triggered checkpoint 28696 | -7/Garrison | Garrison Relay disabled 28735 | -7/Garrison | Triggered checkpoint 28785 | -7/Garrison | Destroyed 7 combat bots 28992 | -7/Garrison | Triggered checkpoint 29052 | -7/Garrison | Triggered checkpoint 29089 | -7/Garrison | Triggered checkpoint 29097 | -7/Garrison | Destroyed by S-27 Virus with Autogun Last Messages --------------- 29003_ Q:OPB0=S/W=I&TJBSPZA% 29036_ Extracted 4 energy. 29040_ LZCEVQNJADWVUZJZ%BI76SA&O=N2W|AY,IMGG,1N 29040_ Acquired 44 matter. 29041_ Angel 4a destroyed. 29045_ Acquired 30 matter. 29052_ G-47 Trooper destroyed. 29052_ Slug penetrates Garrison Door. 29052_ Beams of light sweep through the air. An alarm sounds. 29074_ System corrupted: Proton Missile Launcher targeting data glitched. 29077_ G-47 Trooper destroyed. 29086_ Slug penetrates Wall. 29089_ Slug penetrates L-41 Fighter. 29089_ L-41 Fighter knocked back. 29092_ Slug penetrates L-41 Fighter. 29092_ Destroyed Carbon-fiber Leg. 29092_ L-41 Fighter knocked back. 29095_ Slug penetrates L-41 Fighter. 29095_ L-41 Fighter destroyed. 29095_ S-27 Virus destroyed. Map ----- +----------------------------------------------------+ | ?????????????????????????????????????????????????? | | ??????????????????? ???????????????????????????? | | ??????????????????# #??????????????????????????? | | ??????????????????# ##""""#????????????????????? | | ??????????????????# ? ?????????????????? | | ??????????????????# ???????????????? | | ??????????????????# ? ???????????????? | | ??????????????????# ##s ## #???????????????? | | ????????????????### ## s ###?????????????? | | ????????????????# #?????????????? | | ?????????###????# #?????????????? | | ?????????# ????# [%= #?????????????? | | ??????#### ####?? *=* % % #?????????????? | | ??????# ## #???# ##l^= #???????????????? | | ??????# # ##### ##^[= ######??????????? | | ?????## = %%%= ?????????? | | ?????# # ! ! [ [*[=[* ?????????? | | ?????## # ##%## =%= #???????????????? | | ?????### # # ## ##[ ## ##???????????????? | | ?????# # ## ## #????????????????????? | | ?????## # % ## ### ###????????????????????? | | ??????# # %### # + #?# #??????????????????????? | | ??##### # # #?# #??????????????????????? | | ??# # # # ### #?#/#??????????????????????? | | ### ## # # ### ###%#??????????????????????? | | = = # @#??????????????????????? | | == [ ! #####??????????????????????? | | ### [ ## ### ## #####??????????????????????????? | | ?## ## ######??????????????????????????????? | | ?#"" ""# ###???????????????????????????????????? | | ?######## #?????????????????????????????????????? | | ????????# #?????????????????????????????????????? | | ????????# #?????????????????????????????????????? | | ????????# #?????????????????????????????????????? | | ????????# #?????????????????????????????????????? | | ????????# #?????????????????????????????????????? | | #???????# #?????????????????????????????????????? | | ######### #?????????????????????????????????????? | | | * #?????????????????????????????????????? | | = #?????????????????????????????????????? | | * #########?????????????????????????????????????? | | #?????????????????????????????????????????????? | | ####?????????????????????????????????????????????? | | ?????????????????????????????????????????????????? | | ?????????????????????????????????????????????????? | | ?????????????????????????????????????????????????? | | ?????????????????????????????????????????????????? | | ?????????????????????????????????????????????????? | | ?????????????????????????????????????????????????? | | ?????????????????????????????????????????????????? | +----------------------------------------------------+ Best States ------------- Heat Dissipation 61 Energy Generation 18 Energy Capacity 600 Matter Stores 300 Matter Capacity 300 Sight Range 16 Robot Scan Range 16 Terrain Scan Density 10 Armor Coverage 225 Evasion (%) 44 Recoil Reduction 2 Offensive Hacking 10 Defensive Hacking 10 Item Schematics ----------------- Trap Extractor | -9/Materials | Scanalyzed Humpback | -7/Factory | Scanalyzed Hcp. Storage Unit | -7/Factory | Scanalyzed Imp. Datajack | -7/Factory | Scanalyzed Lrg. Matter Pod | -7/Factory | Scanalyzed System Shield | -7/Factory | Scanalyzed Adv. Sensor Array | -7/Factory | Scanalyzed Robot Schematics ------------------ None Fabricated ------------ Nothing Alien Tech Used ----------------- None Achievements -------------- Pwned Challenges ------------ None Game ------ Seed WeightUtilityTerminator Manual? 0 Play Time 03:35:05 Cumulative 161.6 hours Start 2020.06.27 @ 19:52:04 End 2020.06.28 @ 00:12:22 Sessions 1 Manual Loads 0 Difficulty Rogue Special Mode None Game No. 78 Rogue 78 Adventurer 0 Explorer 0 Win Type - Total 7 Types 6/0/0/1/0/0/0 Lore% 72 Gallery% 69 Achievement% 59 Wizard Run 0 Options --------- ASCII 1 Keyboard 0 Movement Numpad Keybinds 0 Fullscreen 1 Font 18/Cog Map View 76x50 Tactical HUD 1 Map Filters NONE Filters NONE Steam 1 RUN: 5d2754e1-8be8-4aae-834d-f7a150a9e6b4